fUSD/lending_fUSD_20250209
["ID","MTS","AMOUNT","RATE_DAILY","PERIOD"]
[352437662,1739107861701,-500.0,0.00011031,2]
[352437663,1739107861712,-500.0,0.00011031,2]
[352437664,1739107861723,-500.0,0.00011031,2]
[352437665,1739107861733,-500.0,0.00011031,2]
[352437666,1739107861744,-500.0,0.00011031,2]
[352437667,1739107861755,-500.0,0.00011031,2]
[352437668,1739107861766,-500.0,0.00011031,2]
[352437669,1739107861779,-316.7150687,0.00011031,2]
[352437670,1739107861789,-500.0,0.00011031,2]
[352437671,1739107861799,-500.0,0.00011031,2]
[352437672,1739107861810,-500.0,0.00011031,2]
[352437673,1739107861820,-500.0,0.00011031,2]
[352437674,1739107861831,-623.01911741,0.00011031,2]
[352437675,1739107861841,-500.0,0.00011031,2]
[352437676,1739107861852,-500.0,0.00011031,2]
[352437677,1739107861862,-500.0,0.00011031,2]
[352437678,1739107861872,-500.0,0.00011031,2]
[352437679,1739107861883,-234.11780231,0.00011031,2]
[352437680,1739107861893,-500.0,0.00011031,2]
[352437681,1739107861903,-378.35989729,0.00011031,2]
[352437682,1739107861913,-500.0,0.00011031,2]
[352437683,1739107861924,-500.0,0.00011031,2]
[352437684,1739107861934,-500.0,0.00011031,2]
[352437685,1739107861944,-427.65669243,0.00011031,2]
[352437686,1739107861955,-500.0,0.00011031,2]
[352437687,1739107861964,-500.0,0.00011031,2]
[352437688,1739107861975,-500.0,0.00011031,2]
[352437689,1739107861989,-500.0,0.00011031,2]
[352437690,1739107862306,-500.0,0.00011031,2]
[352437691,1739107862342,-521.28698494,0.00011031,2]
[352437692,1739107862354,-500.0,0.00011031,2]
[352437693,1739107862364,-500.0,0.00011031,2]
[352437694,1739107862373,-500.0,0.00011031,2]
[352437695,1739107862383,-506.9174051,0.00011031,2]
[352437696,1739107862392,-501.29706162,0.00011031,2]
[352437697,1739107862402,-500.0,0.00011031,2]
[352437698,1739107862412,-500.0,0.00011031,2]
[352437699,1739107862422,-500.0,0.00011031,2]
[352437700,1739107862432,-505.17239673,0.00011031,2]
[352437701,1739107862442,-500.0,0.00011031,2]
[352437702,1739107862452,-501.88333216,0.00011031,2]
[352437703,1739107862461,-500.0,0.00011031,2]
[352437704,1739107862471,-500.0,0.00011031,2]
[352437705,1739107862480,-500.0,0.00011031,2]
[352437706,1739107862490,-500.0,0.00011031,2]
[352437707,1739107862501,-500.0,0.00011031,2]
[352437708,1739107862511,-500.0,0.00011031,2]
[352437709,1739107862521,-500.0,0.00011031,2]
[352437710,1739107862532,-500.0,0.00011031,2]
[352437711,1739107862542,-500.0,0.00011031,2]
[352437712,1739107862551,-500.0,0.00011031,2]
[352437713,1739107862561,-500.0,0.00011031,2]
[352437714,1739107862571,-500.0,0.00011031,2]
[352437715,1739107862581,-500.0,0.00011031,2]
[352437716,1739107862591,-523.88285067,0.00011031,2]
[352437717,1739107862600,-502.74177629,0.00011031,2]
[352437718,1739107862609,-500.0,0.00011031,2]
[352437719,1739107862618,-503.45999476,0.00011031,2]
[352437720,1739107862628,-500.0,0.00011031,2]
[352437721,1739107862637,-500.0,0.00011031,2]
[352437722,1739107862646,-517.1,0.00011031,2]
[352437723,1739107862655,-1995.06,0.00011031,2]
[352437724,1739107862665,-500.0,0.00011031,2]
[352437725,1739107862674,-500.0,0.00011031,2]
[352437726,1739107862684,-500.0,0.00011031,2]
[352437727,1739107862694,-500.0,0.00011031,2]
[352437728,1739107862703,-500.0,0.00011031,2]
[352437729,1739107862713,-500.0,0.00011031,2]
[352437730,1739107862722,-500.0,0.00011031,2]
[352437731,1739107862732,-367.56634373,0.00011031,2]
[352437732,1739107862742,-502.26741004,0.00011031,2]
[352437733,1739107862751,-574.17500961,0.00011031,2]
[352437734,1739107862761,-500.0,0.00011031,2]
[352437735,1739107862771,-500.0,0.00011031,2]
[352437736,1739107862782,-500.0,0.00011031,2]
[352437737,1739107862792,-500.0,0.00011031,2]
[352437738,1739107862802,-500.0,0.00011031,2]
[352437739,1739107862811,-500.0,0.00011031,2]
[352437740,1739107862820,-500.0,0.00011031,2]
[352437741,1739107862830,-500.0,0.00011031,2]
[352437742,1739107862839,-500.0,0.00011031,2]
[352437743,1739107862848,-500.0,0.00011031,2]
[352437744,1739107862858,-500.0,0.00011031,2]
[352437745,1739107862867,-500.0,0.00011031,2]
[352437746,1739107862877,-500.0,0.00011031,2]
[352437747,1739107862887,-558.29,0.00011031,2]
[352437748,1739107862896,-500.0,0.00011031,2]
[352437749,1739107862906,-290.56844793,0.00011031,2]
[352437750,1739107862915,-500.0,0.00011031,2]
[352437751,1739107862925,-500.0,0.00011031,2]
[352437752,1739107862935,-500.0,0.00011031,2]
[352437753,1739107862944,-500.0,0.00011031,2]
[352437754,1739107862953,-500.0,0.00011031,2]
[352437755,1739107862962,-500.0,0.00011031,2]
[352437756,1739107862973,-500.0,0.00011031,2]
[352437757,1739107862982,-500.0,0.00011031,2]
[352437758,1739107862991,-518.81,0.00011031,2]
[352437759,1739107863000,-500.0,0.00011031,2]
[352437760,1739107863009,-592.4,0.00011031,2]
[352437761,1739107863018,-500.0,0.00011031,2]
[352437762,1739107863029,-500.0,0.00011031,2]
[352437763,1739107863039,-500.0,0.00011031,2]
[352437764,1739107863049,-500.0,0.00011031,2]
[352437765,1739107863059,-500.0,0.00011031,2]
[352437766,1739107863069,-500.0,0.00011031,2]
[352437767,1739107863079,-500.0,0.00011031,2]
[352437768,1739107863089,-500.0,0.00011031,2]
[352437769,1739107863099,-500.0,0.00011031,2]
[352437770,1739107863109,-500.0,0.00011031,2]
[352437771,1739107863119,-500.0,0.00011031,2]
[352437772,1739107863128,-500.0,0.00011031,2]
[352437773,1739107863137,-500.0,0.00011031,2]
[352437774,1739107863147,-500.0,0.00011031,2]
[352437775,1739107863157,-500.0,0.00011031,2]
[352437776,1739107863167,-500.0,0.00011031,2]
[352437777,1739107863178,-500.0,0.00011031,2]
[352437778,1739107863188,-500.0,0.00011031,2]
[352437779,1739107863199,-500.0,0.00011031,2]
[352437780,1739107863209,-500.0,0.00011031,2]
[352437781,1739107863220,-500.0,0.00011031,2]
[352437782,1739107863230,-500.0,0.00011031,2]
[352437783,1739107863241,-500.0,0.00011031,2]
[352437784,1739107863255,-500.0,0.00011031,2]
[352437785,1739107863266,-500.0,0.00011031,2]
[352437786,1739107863276,-523.57870942,0.00011031,2]
[352437787,1739107863287,-500.0,0.00011031,2]
[352437788,1739107863299,-500.0,0.00011031,2]
[352437789,1739107863311,-869.24,0.00011031,2]
[352437790,1739107863321,-917.81,0.00011031,2]
[352437791,1739107863333,-500.0,0.00011031,2]
[352437792,1739107863343,-500.0,0.00011031,2]
[352437793,1739107863354,-620.420557,0.00011031,2]
[352437794,1739107863364,-500.0,0.00011031,2]
[352437795,1739107863374,-643.61,0.00011031,2]
[352437796,1739107863385,-500.0,0.00011031,2]
[352437797,1739107863395,-622.5,0.00011031,2]
[352437798,1739107863405,-500.0,0.00011031,2]
[352437799,1739107863414,-500.0,0.00011031,2]
[352437800,1739107863425,-500.0,0.00011031,2]
[352437801,1739107863435,-712.57,0.00011031,2]
[352437802,1739107863444,-500.0,0.00011031,2]
[352437803,1739107863455,-749.43,0.00011031,2]
[352437804,1739107863474,-500.0,0.00011031,2]
[352437805,1739107863484,-504.51,0.00011031,2]
[352437806,1739107863495,-500.0,0.00011031,2]
[352437807,1739107863505,-500.0,0.00011031,2]
[352437808,1739107863516,-500.0,0.00011031,2]
[352437809,1739107863527,-612.163729,0.00011031,2]
[352437810,1739107863538,-773.52,0.00011031,2]
[352437811,1739107863548,-500.0,0.00011031,2]
[352437812,1739107863558,-1582.01,0.00011031,2]
[352437813,1739107863568,-500.0,0.00011031,2]
[352437814,1739107863578,-1233.21,0.00011031,2]
[352437815,1739107863588,-655.54,0.00011031,2]
[352437816,1739107863598,-150.0,0.00011031,2]
[352437817,1739107863607,-979.19,0.00011031,2]
[352437818,1739107863617,-580.6,0.00011031,2]
[352437819,1739107863628,-551.62,0.00011031,2]
[352437820,1739107863638,-697.89,0.00011031,2]
[352437821,1739107863647,-917.86,0.00011031,2]
[352437822,1739107863658,-772.07,0.00011031,2]
[352437823,1739107863667,-2450.21,0.00011031,2]
[352437824,1739107863677,-1029.57,0.00011031,2]
[352437825,1739107863687,-517.95,0.00011031,2]
[352437826,1739107863698,-500.0,0.00011031,2]
[352437827,1739107863708,-803.93,0.00011031,2]
[352437828,1739107863718,-508.68067419,0.00011031,2]
[352437829,1739107863728,-500.0,0.00011031,2]
[352437830,1739107863738,-823.01,0.00011031,2]
[352437831,1739107863748,-1007.33,0.00011031,2]
[352437832,1739107863758,-500.0,0.00011031,2]
[352437833,1739107863768,-500.0,0.00011031,2]
[352437834,1739107863778,-809.98,0.00011031,2]
[352437835,1739107863787,-500.0,0.00011031,2]
[352437836,1739107863797,-817.22,0.00011031,2]
[352437837,1739107863808,-997.12,0.00011031,2]
[352437838,1739107863817,-862.14,0.00011031,2]
[352437839,1739107863827,-500.0,0.00011031,2]
[352437840,1739107863836,-536.42,0.00011031,2]
[352437841,1739107863846,-500.0,0.00011031,2]
[352437842,1739107863856,-500.0,0.00011031,2]
[352437843,1739107863866,-540.78,0.00011031,2]
[352437844,1739107863875,-1290.99,0.00011031,2]
[352437845,1739107863884,-905.18,0.00011031,2]
[352437846,1739107863894,-2008.31,0.00011031,2]
[352437847,1739107863904,-941.54,0.00011031,2]
[352437848,1739107863913,-500.0,0.00011031,2]
[352437849,1739107863923,-999.5,0.00011031,2]
[352437850,1739107863933,-500.0,0.00011031,2]
[352437851,1739107863943,-500.0,0.00011031,2]
[352437852,1739107863953,-500.0,0.00011031,2]
[352437853,1739107863963,-1002.42,0.00011031,2]
[352437854,1739107863973,-500.0,0.00011031,2]
[352437855,1739107863982,-500.0,0.00011031,2]
[352437856,1739107863992,-1130.57,0.00011031,2]
[352437857,1739107864002,-500.0,0.00011031,2]
[352437858,1739107864011,-803.87,0.00011031,2]
[352437859,1739107864021,-500.0,0.00011031,2]
[352437860,1739107864033,-750.13,0.00011031,2]
[352437861,1739107864043,-500.0,0.00011031,2]
[352437862,1739107864054,-500.0,0.00011031,2]
[352437863,1739107864064,-1309.04,0.00011031,2]
[352437864,1739107864074,-500.0,0.00011031,2]
[352437865,1739107864084,-500.0,0.00011031,2]
[352437866,1739107864094,-500.0,0.00011031,2]
[352437867,1739107864104,-550.74,0.00011031,2]
[352437868,1739107864114,-998.43,0.00011031,2]
[352437869,1739107864130,-500.0,0.00011031,2]
[352437870,1739107864140,-602.27,0.00011031,2]
[352437871,1739107864150,-500.0,0.00011031,2]
[352437872,1739107864159,-500.0,0.00011031,2]
[352437873,1739107864169,-500.0,0.00011031,2]
[352437874,1739107864179,-585.34,0.00011031,2]
[352437875,1739107864189,-500.0,0.00011031,2]
[352437876,1739107864198,-500.0,0.00011031,2]
[352437877,1739107864208,-500.0,0.00011031,2]
[352437878,1739107864218,-500.0,0.00011031,2]
[352437879,1739107864229,-500.0,0.00011031,2]
[352437880,1739107864242,-531.22,0.00011031,2]
[352437881,1739107864255,-500.0,0.00011031,2]
[352437882,1739107864265,-500.0,0.00011031,2]
[352437883,1739107864275,-500.0,0.00011031,2]
[352437884,1739107864288,-500.0,0.00011031,2]
[352437885,1739107864299,-500.0,0.00011031,2]
[352437886,1739107864310,-1046.48,0.00011031,2]
[352437887,1739107864320,-906.83,0.00011031,2]
[352437888,1739107864331,-563.01458737,0.00011031,2]
[352437889,1739107864341,-500.0,0.00011031,2]
[352437890,1739107864352,-500.0,0.00011031,2]
[352437891,1739107864362,-504.18252283,0.00011031,2]
[352437892,1739107864373,-500.0,0.00011032,2]
[352437893,1739107864384,-166.26,0.00011032,2]
[352437894,1739107864394,-500.0,0.00011032,2]
[352437895,1739107864404,-475.20212571,0.00011032,2]
[352437896,1739107864415,-500.0,0.00011032,2]
[352437897,1739107864426,-500.0,0.00011032,2]
[352437898,1739107864436,-500.0,0.00011032,2]
[352437899,1739107864446,-500.0,0.00011032,2]
[352437900,1739107864456,-500.0,0.00011032,2]
[352437901,1739107864466,-213.02,0.00011032,2]
[352437902,1739107864476,-500.0,0.00011032,2]
[352437903,1739107864485,-500.0,0.00011032,2]
[352437904,1739107864495,-500.0,0.00011032,2]
[352437905,1739107864504,-500.0,0.00011032,2]
[352437906,1739107864514,-500.0,0.00011032,2]
[352437907,1739107864524,-500.0,0.00011032,2]
[352437908,1739107864536,-500.0,0.00011032,2]
[352437909,1739107864546,-500.0,0.00011032,2]
[352437910,1739107864555,-500.0,0.00011032,2]
[352437911,1739107864565,-500.0,0.00011032,2]
[352437912,1739107864575,-501.82,0.00011032,2]
[352437913,1739107864584,-500.0,0.00011032,2]
[352437914,1739107864594,-500.0,0.00011032,2]
[352437915,1739107864603,-500.0,0.00011032,2]
[352437916,1739107864613,-541.29,0.00011032,2]
[352437917,1739107864622,-500.0,0.00011032,2]
[352437918,1739107864631,-500.0,0.00011032,2]
[352437919,1739107864641,-500.0,0.00011032,2]
[352437920,1739107864651,-701.75,0.00011032,2]
[352437921,1739107864660,-500.0,0.00011032,2]
[352437922,1739107864669,-500.0,0.00011032,2]
[352437923,1739107864678,-500.0,0.00011032,2]
[352437924,1739107864687,-500.0,0.00011032,2]
[352437925,1739107864698,-554.16,0.00011032,2]
[352437926,1739107864707,-500.0,0.00011032,2]
[352437927,1739107864717,-500.0,0.00011032,2]
[352437928,1739107864726,-500.0,0.00011032,2]
[352437929,1739107864736,-500.0,0.00011032,2]
[352437930,1739107864745,-500.0,0.00011032,2]
[352437931,1739107864754,-500.0,0.00011032,2]
[352437932,1739107864763,-500.0,0.00011032,2]
[352437933,1739107864772,-500.0,0.00011032,2]
[352437934,1739107864784,-500.0,0.00011032,2]
[352437935,1739107864793,-500.0,0.00011032,2]
[352437936,1739107864802,-508.51,0.00011032,2]
[352437937,1739107864811,-500.0,0.00011032,2]
[352437938,1739107864820,-500.0,0.00011032,2]
[352437939,1739107864829,-500.0,0.00011032,2]
[352437940,1739107864839,-500.0,0.00011032,2]
[352437941,1739107864848,-500.0,0.00011032,2]
[352437942,1739107864857,-500.0,0.00011032,2]
[352437943,1739107864867,-500.0,0.00011032,2]
[352437944,1739107864876,-500.0,0.00011032,2]
[352437945,1739107864885,-500.0,0.00011032,2]
[352437946,1739107864894,-566.95,0.00011032,2]
[352437947,1739107864904,-500.0,0.00011032,2]
[352437948,1739107864914,-500.0,0.00011032,2]
[352437949,1739107864923,-500.0,0.00011032,2]
[352437950,1739107864932,-500.0,0.00011032,2]
[352437951,1739107864942,-517.91972292,0.00011032,2]
[352437952,1739107864951,-500.0,0.00011032,2]
[352437953,1739107864960,-516.17,0.00011032,2]
[352437954,1739107864970,-500.0,0.00011032,2]
[352437955,1739107864980,-500.0,0.00011032,2]
[352437956,1739107864989,-500.0,0.00011032,2]
[352437957,1739107864999,-576.02,0.00011032,2]
[352437958,1739107865008,-500.0,0.00011032,2]
[352437959,1739107865018,-538.36711023,0.00011032,2]
[352437960,1739107865027,-500.0,0.00011032,2]
[352437961,1739107865038,-573.59,0.00011032,2]
[352437962,1739107865047,-500.0,0.00011032,2]
[352437963,1739107865056,-500.0,0.00011032,2]
[352437964,1739107865066,-500.0,0.00011032,2]
[352437965,1739107865075,-500.0,0.00011032,2]
[352437966,1739107865084,-500.0,0.00011032,2]
[352437967,1739107865094,-727.19,0.00011032,2]
[352437968,1739107865104,-500.0,0.00011032,2]
[352437969,1739107865114,-500.0,0.00011032,2]
[352437970,1739107865123,-500.0,0.00011032,2]
[352437971,1739107865133,-620.23,0.00011032,2]
[352437972,1739107865143,-500.0,0.00011032,2]
[352437973,1739107865153,-500.0,0.00011032,2]
[352437974,1739107865163,-500.0,0.00011032,2]
[352437975,1739107865172,-543.97,0.00011032,2]
[352437976,1739107865181,-573.79,0.00011032,2]
[352437977,1739107865191,-500.0,0.00011032,2]
[352437978,1739107865201,-500.0,0.00011032,2]
[352437979,1739107865211,-518.87,0.00011032,2]
[352437980,1739107865221,-500.0,0.00011032,2]
[352437981,1739107865231,-638.01,0.00011032,2]
[352437982,1739107865241,-601.24,0.00011032,2]
[352437983,1739107865253,-500.0,0.00011032,2]
[352437984,1739107865263,-500.0,0.00011032,2]
[352437985,1739107865273,-500.0,0.00011032,2]
[352437986,1739107865285,-500.0,0.00011032,2]
[352437987,1739107865473,-500.0,0.00011032,2]
[352437988,1739107865483,-704.82,0.00011032,2]
[352437989,1739107865492,-603.16,0.00011032,2]
[352437990,1739107865501,-731.45,0.00011032,2]
[352437991,1739107865510,-500.0,0.00011032,2]
[352437992,1739107865519,-730.12,0.00011032,2]
[352437993,1739107865529,-708.33,0.00011032,2]
[352437994,1739107865539,-500.0,0.00011032,2]
[352437995,1739107865549,-787.33,0.00011032,2]
[352437996,1739107865558,-563.98,0.00011032,2]
[352437997,1739107865567,-500.0,0.00011032,2]
[352437998,1739107865578,-1390.78,0.00011032,2]
[352437999,1739107865587,-500.0,0.00011032,2]
[352438000,1739107865597,-500.0,0.00011032,2]
[352438001,1739107865607,-698.39,0.00011032,2]
[352438002,1739107865617,-500.0,0.00011032,2]
[352438003,1739107865626,-1393.85,0.00011032,2]
[352438004,1739107865635,-514.6,0.00011032,2]
[352438005,1739107865645,-500.0,0.00011032,2]
[352438006,1739107865654,-936.4,0.00011032,2]
[352438007,1739107865663,-1334.52,0.00011032,2]
[352438008,1739107865672,-1378.75,0.00011032,2]
[352438009,1739107865681,-500.0,0.00011032,2]
[352438010,1739107865691,-500.0,0.00011032,2]
[352438011,1739107865701,-500.0,0.00011032,2]
[352438012,1739107865710,-500.0,0.00011032,2]
[352438013,1739107865720,-1314.92,0.00011032,2]
[352438014,1739107865729,-949.47,0.00011032,2]
[352438015,1739107865739,-500.0,0.00011032,2]
[352438016,1739107865749,-500.0,0.00011032,2]
[352438017,1739107865759,-500.0,0.00011032,2]
[352438018,1739107865768,-500.0,0.00011032,2]
[352438019,1739107865777,-977.97,0.00011032,2]
[352438020,1739107865789,-560.88,0.00011032,2]
[352438021,1739107865799,-500.0,0.00011032,2]
[352438022,1739107865809,-500.0,0.00011032,2]
[352438023,1739107865818,-769.7,0.00011032,2]
[352438024,1739107865828,-731.74,0.00011032,2]
[352438025,1739107865837,-755.71,0.00011032,2]
[352438026,1739107865847,-500.0,0.00011032,2]
[352438027,1739107865856,-672.89,0.00011032,2]
[352438028,1739107865866,-500.0,0.00011032,2]
[352438029,1739107865875,-500.0,0.00011032,2]
[352438030,1739107865885,-500.0,0.00011032,2]
[352438031,1739107865895,-789.01,0.00011032,2]
[352438032,1739107865904,-247.90035736,0.00011032,2]
[352438033,1739107865914,-538.17,0.00011032,2]
[352438034,1739107865923,-703.45,0.00011032,2]
[352438035,1739107865934,-500.0,0.00011032,2]
[352438036,1739107865943,-500.0,0.00011032,2]
[352438037,1739107865953,-500.0,0.00011032,2]
[352438038,1739107865962,-500.0,0.00011032,2]
[352438039,1739107865972,-1016.08,0.00011032,2]
[352438040,1739107865981,-500.0,0.00011032,2]
[352438041,1739107865991,-576.55,0.00011032,2]
[352438042,1739107866000,-705.29,0.00011032,2]
[352438043,1739107866010,-766.53,0.00011032,2]
[352438044,1739107866020,-500.0,0.00011033,2]
[352438045,1739107866029,-500.0,0.00011033,2]
[352438046,1739107866038,-642.01,0.00011033,2]
[352438047,1739107866048,-500.0,0.00011033,2]
[352438048,1739107866058,-539.72,0.00011033,2]
[352438049,1739107866068,-500.0,0.00011033,2]
[352438050,1739107866077,-500.0,0.00011033,2]
[352438051,1739107866087,-500.0,0.00011033,2]
[352438052,1739107866097,-500.0,0.00011033,2]
[352438053,1739107866107,-150.0,0.00011035,2]
[352438054,1739107866116,-150.0,0.00011041,2]
[352438055,1739107866126,-1351.82830865,0.00011068,2]
[352438056,1739107866136,-657.54455841,0.00011099,2]
[352438057,1739107866146,-657.54455837,0.00011099,2]
[352438058,1739107866155,-657.54455837,0.00011099,2]
[352438059,1739107866165,-657.54455837,0.00011099,2]
[352438060,1739107866174,-657.54455837,0.00011099,2]
[352438061,1739107866184,-366.15524577,0.00011099,2]
[352438062,1739107866193,-366.15524571,0.00011099,2]
[352438063,1739107866203,-366.15524571,0.00011099,2]
[352438064,1739107866212,-366.15524571,0.00011099,2]
[352438065,1739107866221,-366.15524571,0.00011099,2]
[352438066,1739107866231,-1351.82830865,0.00011123,2]
[352438067,1739107866240,-431.7357272,0.00011144,2]
[352438068,1739107866253,-500.0,0.00011146,2]
[352438069,1739107866263,-945.4,0.00011146,2]
[352438070,1739107866273,-1196.06,0.00011146,2]
[352438071,1739107866284,-1411.24,0.00011146,2]
[352438072,1739107866294,-1704.82,0.00011146,2]
[352438073,1739107866305,-921.89,0.00011146,2]
[352438074,1739107866314,-761.62,0.00011146,2]
[352438075,1739107866324,-809.89,0.00011146,2]
[352438076,1739107866335,-1085.47,0.00011146,2]
[352438077,1739107866344,-500.0,0.00011146,2]
[352438078,1739107866354,-869.28,0.00011146,2]
[352438079,1739107866364,-1125.97,0.00011146,2]
[352438080,1739107866373,-1069.98,0.00011146,2]
[352438081,1739107866383,-1000.0,0.00011146,2]
[352438082,1739107866392,-1075.57,0.00011146,2]
[352438083,1739107866402,-500.0,0.00011146,2]
[352438084,1739107866412,-869.7,0.00011146,2]
[352438085,1739107866422,-1080.69,0.00011146,2]
[352438086,1739107866432,-500.0,0.00011162,2]
[352438087,1739107866442,-500.0,0.00011162,2]
[352438088,1739107866452,-574.37,0.00011162,2]
[352438089,1739107866461,-594.17,0.00011162,2]
[352438090,1739107866472,-500.0,0.00011162,2]
[352438091,1739107866482,-500.0,0.00011162,2]
[352438092,1739107866491,-500.0,0.00011162,2]
[352438093,1739107866501,-500.0,0.00011162,2]
[352438094,1739107866511,-500.0,0.00011162,2]
[352438095,1739107866520,-500.0,0.00011162,2]
[352438096,1739107866532,-505.84,0.00011162,2]
[352438097,1739107866542,-579.83,0.00011162,2]
[352438098,1739107866552,-500.0,0.00011162,2]
[352438099,1739107866562,-652.14,0.00011162,2]
[352438100,1739107866571,-500.0,0.00011162,2]
[352438101,1739107866581,-500.0,0.00011162,2]
[352438102,1739107866591,-500.0,0.00011162,2]
[352438103,1739107866602,-500.0,0.00011162,2]
[352438104,1739107866612,-500.0,0.00011162,2]
[352438105,1739107866621,-500.0,0.00011162,2]
[352438106,1739107866631,-527.38,0.00011162,2]
[352438107,1739107866641,-500.0,0.00011162,2]
[352438108,1739107866651,-655.75,0.00011162,2]
[352438109,1739107866660,-787.42,0.00011162,2]
[352438110,1739107866670,-810.3,0.00011162,2]
[352438111,1739107866680,-500.0,0.00011162,2]
[352438112,1739107866690,-500.0,0.00011162,2]
[352438113,1739107866699,-500.0,0.00011162,2]
[352438114,1739107866709,-500.0,0.00011162,2]
[352438115,1739107866719,-500.0,0.00011162,2]
[352438116,1739107866728,-500.0,0.00011162,2]
[352438117,1739107866738,-500.0,0.00011162,2]
[352438118,1739107866748,-860.15,0.00011162,2]
[352438119,1739107866758,-556.55,0.00011162,2]
[352438120,1739107866768,-500.0,0.00011162,2]
[352438121,1739107866777,-597.29,0.00011162,2]
[352438122,1739107866791,-1061.93,0.00011162,2]
[352438123,1739107866801,-500.0,0.00011162,2]
[352438124,1739107866810,-500.0,0.00011162,2]
[352438125,1739107866820,-500.0,0.00011162,2]
[352438126,1739107866830,-594.83,0.00011162,2]
[352438127,1739107866840,-500.0,0.00011162,2]
[352438128,1739107866850,-500.0,0.00011162,2]
[352438129,1739107866860,-500.0,0.00011162,2]
[352438130,1739107866870,-500.0,0.00011162,2]
[352438131,1739107866880,-500.0,0.00011162,2]
[352438132,1739107866889,-500.0,0.00011162,2]
[352438133,1739107866899,-500.0,0.00011162,2]
[352438134,1739107866908,-500.0,0.00011162,2]
[352438135,1739107866918,-500.0,0.00011162,2]
[352438136,1739107866927,-500.0,0.00011162,2]
[352438137,1739107866937,-166.38,0.00011162,2]
[352438138,1739107866950,-500.0,0.00011162,2]
[352438139,1739107866959,-509.2,0.00011162,2]
[352438140,1739107866968,-500.0,0.00011162,2]
[352438141,1739107866977,-500.0,0.00011162,2]
[352438142,1739107866987,-500.0,0.00011168,2]
[352438143,1739107866996,-500.0,0.00011168,2]
[352438144,1739107867005,-577.83471371,0.00011168,2]
[352438145,1739107867014,-500.0,0.00011168,2]
[352438146,1739107867023,-500.0,0.00011168,2]
[352438147,1739107867033,-500.0,0.00011168,2]
[352438148,1739107867043,-500.0,0.00011168,2]
[352438149,1739107867053,-500.0,0.00011168,2]
[352438150,1739107867062,-500.0,0.00011168,2]
[352438151,1739107867071,-500.0,0.00011168,2]
[352438152,1739107867081,-503.60215071,0.00011168,2]
[352438153,1739107867090,-500.0,0.00011168,2]
[352438154,1739107867099,-500.0,0.00011168,2]
[352438155,1739107867108,-500.0,0.00011168,2]
[352438156,1739107867118,-500.0,0.00011168,2]
[352438157,1739107867127,-500.0,0.00011168,2]
[352438158,1739107867137,-500.0,0.00011168,2]
[352438159,1739107867147,-500.0,0.00011168,2]
[352438160,1739107867156,-500.0,0.00011168,2]
[352438161,1739107867166,-500.0,0.00011168,2]